bitfinex/quotes_BTCUSD_20250826
["timestamp","ask_amount","ask_price","bid_price","bid_amount"]
[1756219334243,0.92470371,110580.0,110570.0,0.2295537]
[1756219335393,0.92470371,110580.0,110570.0,0.2365537]
[1756219335549,0.341,110580.0,110570.0,0.3993537]
[1756219335765,0.52186453,110580.0,110570.0,0.2365537]
[1756219336021,0.92570371,110580.0,110570.0,0.21843282]
[1756219336237,0.98655829,110580.0,110570.0,0.05567282]
[1756219336475,0.92570371,110580.0,110570.0,0.05567282]
[1756219336678,0.92768371,110580.0,110570.0,0.21843282]
[1756219337308,0.92768371,110580.0,110570.0,0.05567282]
[1756219337526,1.09044371,110580.0,110570.0,0.01]
[1756219337794,1.184259,110580.0,110570.0,0.01]
[1756219338011,1.211456,110580.0,110570.0,0.01]
[1756219338216,1.209086,110580.0,110570.0,0.01]
[1756219338871,0.54906153,110580.0,110570.0,0.01202]
[1756219339119,1.11566071,110580.0,110570.0,0.01526]
[1756219339330,0.95290071,110580.0,110570.0,0.01526]
[1756219339540,0.95488071,110580.0,110570.0,0.01526]
[1756219339969,0.54906153,110580.0,110570.0,0.01526]
[1756219340179,0.92570371,110580.0,110570.0,0.01526]
[1756219340418,0.52186453,110580.0,110570.0,0.19614088]
[1756219341010,0.341,110580.0,110570.0,0.19614088]
[1756219341896,0.52186453,110580.0,110570.0,0.19614088]
[1756219342541,0.001,110580.0,110570.0,0.2876029]
[1756219342758,0.001,110580.0,110570.0,0.76100208]
[1756219343216,0.001,110580.0,110570.0,0.3571629]
[1756219343438,0.00014231,110590.0,110580.0,0.18086453]
[1756219343669,0.00014231,110590.0,110580.0,0.84438653]
[1756219343888,0.00014231,110590.0,110580.0,0.44030655]
[1756219344573,0.00014231,110590.0,110580.0,0.27758655]
[1756219345009,0.40596149,110590.0,110580.0,0.44030655]
[1756219345224,0.40398149,110590.0,110580.0,0.44030655]
[1756219345436,0.00014231,110590.0,110580.0,0.44430655]
[1756219346078,0.00014231,110590.0,110580.0,0.44930655]
[1756219346299,0.18099048,110590.0,110580.0,0.28658655]
[1756219346515,0.58482966,110590.0,110580.0,0.44930655]
[1756219346727,0.00014231,110590.0,110580.0,0.44530655]
[1756219347680,0.00014231,110590.0,110580.0,0.44830655]
[1756219347915,0.00014231,110590.0,110580.0,0.44930655]
[1756219348782,0.00014231,110590.0,110580.0,0.44430655]
[1756219349219,0.00014231,110590.0,110580.0,0.44830655]
[1756219349619,0.00014231,110590.0,110580.0,0.44430655]
[1756219349870,0.00014231,110590.0,110580.0,0.45030655]
[1756219350802,0.58482966,110590.0,110580.0,0.45022655]
[1756219351221,0.00014231,110590.0,110580.0,0.45022655]
[1756219354159,0.58680966,110590.0,110580.0,0.44698655]
[1756219354386,0.6063071,110590.0,110580.0,0.44698655]
[1756219354642,0.58680966,110590.0,110580.0,0.45022655]
[1756219354862,0.60630741,110590.0,110580.0,0.45022655]
[1756219355078,0.60432741,110590.0,110580.0,0.45022655]
[1756219355289,0.60432741,110590.0,110580.0,0.44722655]
[1756219355710,0.60432741,110590.0,110580.0,0.44922655]
[1756219355925,0.20048823,110590.0,110580.0,0.44922655]
[1756219356362,0.01964006,110590.0,110580.0,0.44322655]
[1756219357033,0.01964006,110590.0,110580.0,0.44722655]
[1756219357257,0.00014231,110590.0,110580.0,0.44722655]
[1756219359015,0.5846559,110610.0,110600.0,0.18083182]
[1756219359230,0.61459565,110610.0,110600.0,0.34343182]
[1756219359713,0.21075647,110610.0,110600.0,0.34559182]
[1756219359934,0.61459565,110610.0,110600.0,0.1626]
[1756219360377,0.61761565,110610.0,110600.0,0.1626]
[1756219360602,0.61761565,110610.0,110600.0,0.001]
[1756219360824,0.64180731,110610.0,110600.0,0.001]
[1756219361077,0.80436731,110610.0,110600.0,0.001]
[1756219361293,1.14436731,110610.0,110600.0,0.001]
[1756219362182,1.25327835,110610.0,110600.0,0.001]
[1756219362410,1.35107343,110610.0,110600.0,0.001]
[1756219362634,0.52084817,110590.0,110580.0,0.001]
[1756219362853,1.13960573,110590.0,110580.0,0.001]
[1756219363067,1.14459573,110590.0,110580.0,0.001]
[1756219364148,0.97901573,110590.0,110580.0,0.001]
[1756219364341,0.9546271,110590.0,110580.0,0.001]
[1756219364844,0.54881792,110590.0,110580.0,0.19122453]
[1756219365066,0.02796975,110590.0,110580.0,0.28268655]
[1756219365293,0.01950433,110590.0,110580.0,0.28268655]
[1756219365514,0.60419002,110600.0,110590.0,0.18084817]
[1756219365739,0.61266166,110600.0,110590.0,0.34876817]
[1756219365953,0.61266166,110600.0,110590.0,0.16256]
[1756219365954,0.61463166,110600.0,110590.0,0.16256]
[1756219366189,0.61765166,110600.0,110590.0,0.16256]
[1756219366839,0.61765166,110600.0,110590.0,0.20378047]
[1756219367053,0.61463166,110600.0,110590.0,0.20378047]
[1756219367699,0.61463166,110600.0,110590.0,0.20594047]
[1756219367913,0.61463166,110600.0,110590.0,0.38678864]
[1756219368125,0.61266166,110600.0,110590.0,0.38998864]
[1756219368337,0.43181515,110600.0,110590.0,0.38998864]
[1756219368584,0.20880779,110600.0,110590.0,0.38998864]
[1756219369023,0.02797597,110600.0,110590.0,0.48145066]
[1756219369449,0.75831451,110620.0,110590.0,0.48145066]
[1756219369663,0.75378912,110620.0,110600.0,0.18401952]
[1756219369910,0.18181557,110610.0,110600.0,0.18401952]
[1756219370124,0.18083182,110600.0,110590.0,0.29524249]
[1756219370339,0.18280182,110600.0,110590.0,0.47925066]
[1756219370548,0.586641,110600.0,110590.0,0.38558864]
[1756219370758,0.59511619,110600.0,110590.0,0.38558864]
[1756219371441,0.18081547,110610.0,110600.0,0.18083182]
[1756219371654,0.95562919,110610.0,110600.0,0.18299182]
[1756219371869,0.54881991,110610.0,110600.0,0.18619182]
[1756219372402,0.54882107,110610.0,110600.0,0.18619182]
[1756219372689,0.77184478,110610.0,110600.0,0.18619182]
[1756219373189,0.95463025,110610.0,110600.0,0.00216]
[1756219373442,0.95463025,110610.0,110590.0,0.39378864]
[1756219373703,0.18083182,110600.0,110590.0,0.48025066]
[1756219373957,0.92465465,110610.0,110590.0,0.48241066]
[1756219374206,0.93313161,110610.0,110590.0,0.48241066]
[1756219374464,0.18083182,110600.0,110590.0,0.48241066]
[1756219374718,0.18280182,110600.0,110590.0,0.48241066]
[1756219375016,0.92465465,110610.0,110590.0,0.48241066]
[1756219375221,0.01369925,110620.0,110600.0,0.18403182]
[1756219375440,0.00472567,110620.0,110610.0,0.34865547]
[1756219375883,0.18178376,110630.0,110620.0,0.18079913]
[1756219375884,0.34,110630.0,110620.0,0.18079913]
[1756219376104,0.34895074,110630.0,110620.0,0.18295913]
[1756219376370,0.52973352,110630.0,110620.0,0.18615913]
[1756219376733,0.53170352,110630.0,110620.0,0.18615913]
[1756219376956,0.52079913,110620.0,110610.0,0.41605356]
[1756219377161,0.52276913,110620.0,110610.0,0.50647558]
[1756219377735,1.0180536,110620.0,110610.0,0.06956]
[1756219377940,1.0220736,110620.0,110610.0,0.23204]
[1756219378145,0.92760831,110620.0,110610.0,0.23204]
[1756219378351,0.18081547,110610.0,110600.0,0.18082231]
[1756219378556,0.18081547,110610.0,110600.0,0.44008433]
[1756219378764,0.92463831,110620.0,110600.0,0.44008433]
[1756219378979,0.18081547,110610.0,110600.0,0.27764433]
[1756219379189,0.18278547,110610.0,110600.0,0.27764433]
[1756219379404,0.18278547,110610.0,110600.0,0.16244]
[1756219379624,0.58662465,110610.0,110600.0,0.16244]
[1756219379830,0.58662465,110610.0,110600.0,0.16444]
[1756219380249,1.01806994,110610.0,110600.0,0.004]
[1756219380455,0.92964465,110610.0,110600.0,0.004]
[1756219380875,1.60479487,110610.0,110600.0,0.002]
[1756219381091,1.63278169,110610.0,110600.0,0.002]
[1756219381305,1.74473042,110610.0,110600.0,0.002]
[1756219381523,1.74835642,110610.0,110600.0,0.002]
[1756219381737,6.52998805,110610.0,110600.0,0.002]
[1756219381970,0.52083182,110600.0,110590.0,0.001]
[1756219382183,6.30300079,110600.0,110590.0,0.001]
[1756219382389,6.30799079,110600.0,110590.0,0.001]
[1756219382835,6.33237942,110600.0,110590.0,0.001]
[1756219383214,6.30799079,110600.0,110590.0,0.001]
[1756219384266,6.30999079,110600.0,110590.0,0.001]
[1756219384475,6.31299079,110600.0,110590.0,0.001]
[1756219384656,6.31297442,110600.0,110590.0,0.001]
[1756219385318,6.3304219,110600.0,110590.0,0.001]
[1756219385497,6.5804219,110600.0,110590.0,1e-08]
[1756219385698,6.60481053,110600.0,110590.0,1e-08]
[1756219386133,6.60481053,110600.0,110530.0,0.06956]
[1756219386134,0.52091361,110550.0,110530.0,0.06956]
[1756219386349,0.52091361,110550.0,110520.0,0.34336194]
[1756219386350,0.18094634,110530.0,110520.0,0.34336194]
[1756219386574,0.18094634,110530.0,110520.0,0.43698396]
[1756219386796,0.58478552,110530.0,110520.0,0.16456]
[1756219387011,0.58478552,110530.0,110520.0,0.34856272]
[1756219387436,0.40383918,110530.0,110520.0,0.34856272]
[1756219387669,0.40383918,110530.0,110520.0,0.34870503]
[1756219387884,0.58478552,110530.0,110520.0,0.34870503]
[1756219388092,0.18094634,110530.0,110520.0,0.34870503]
[1756219388306,0.0010001,110530.0,110520.0,0.34870503]
[1756219389158,0.34,110540.0,110530.0,0.18094634]
[1756219389372,0.34,110540.0,110530.0,0.18612634]
[1756219389588,0.52092998,110540.0,110530.0,0.18612634]
[1756219390007,0.34,110540.0,110530.0,0.18612634]
[1756219390482,0.34,110540.0,110530.0,0.18912634]
[1756219391272,0.52092998,110540.0,110530.0,0.18912634]
[1756219391532,0.52092998,110540.0,110530.0,0.00818]
[1756219391716,0.59932487,110540.0,110530.0,0.00818]
[1756219391920,0.59932487,110540.0,110530.0,0.19312634]
[1756219392123,0.41839489,110540.0,110530.0,0.19312634]
[1756219392358,0.34,110540.0,110530.0,0.19312634]
[1756219392759,0.52092998,110540.0,110530.0,0.19312634]
[1756219392997,0.34,110540.0,110530.0,0.19312634]
[1756219393609,0.52092998,110540.0,110530.0,0.19312634]
[1756219393816,0.34,110540.0,110530.0,0.19312634]
[1756219394250,0.18994211,110560.0,110540.0,0.18092998]
[1756219394486,0.34,110550.0,110540.0,0.2527516]
[1756219394717,0.34,110550.0,110540.0,0.41284998]
[1756219394943,0.34,110550.0,110540.0,0.41498998]
[1756219395174,0.18994211,110560.0,110550.0,0.18091361]
[1756219395175,0.18089725,110560.0,110550.0,0.18091361]
[1756219395469,0.18089725,110560.0,110550.0,0.18609361]
[1756219395928,0.19913681,110570.0,110560.0,0.18089725]
[1756219396151,0.18998861,110570.0,110560.0,0.34843725]
[1756219396620,0.25342354,110580.0,110560.0,0.34843725]
[1756219396844,0.25342354,110580.0,110560.0,0.34539725]
[1756219397067,0.66634304,110580.0,110560.0,0.34539725]
[1756219397202,0.66634304,110580.0,110570.0,0.18088088]
[1756219397422,0.18090394,110580.0,110570.0,0.18606088]
[1756219397627,0.18190404,110580.0,110570.0,0.18606088]
[1756219397825,0.58574322,110580.0,110570.0,0.18406088]
[1756219398074,0.58474312,110580.0,110570.0,0.18406088]
[1756219398477,0.58574312,110580.0,110570.0,0.18406088]
[1756219400144,0.58780312,110580.0,110570.0,0.18406088]
[1756219400554,0.58780312,110580.0,110570.0,0.18102088]
[1756219400911,0.18088088,110570.0,110560.0,0.04486639]
[1756219401122,0.18394088,110570.0,110560.0,0.16246231]
[1756219401333,0.58984006,110570.0,110560.0,0.00014231]
[1756219401750,0.60728908,110570.0,110560.0,0.00014231]
[1756219401954,1.1246578,110570.0,110560.0,0.00014231]
[1756219402362,1.1246578,110570.0,110560.0,0.00314231]
[1756219402781,1.21661264,110570.0,110560.0,0.00414231]
[1756219403015,1.24381664,110570.0,110560.0,0.00414231]
[1756219404041,0.76945786,110570.0,110560.0,0.00314231]
[1756219404254,1.08739034,110570.0,110560.0,0.00314231]
[1756219404895,1.08739034,110570.0,110560.0,0.00014231]
[1756219405309,1.08839034,110570.0,110560.0,0.00014231]
[1756219405571,1.25067034,110570.0,110560.0,0.00014231]
[1756219405792,0.9764193,110570.0,110560.0,0.00014231]
[1756219406015,1.11926406,110570.0,110560.0,0.00014231]
[1756219406213,1.2301633,110570.0,110560.0,0.00014231]
[1756219406428,1.21070935,110570.0,110560.0,0.00014231]
[1756219406882,1.20870935,110570.0,110560.0,0.00014231]
[1756219407303,1.22817882,110570.0,110560.0,0.00014231]
[1756219407709,1.22917882,110570.0,110560.0,0.00014231]
[1756219407956,1.24968784,110570.0,110560.0,0.00014231]
[1756219408666,1.34114986,110570.0,110560.0,0.00014231]
[1756219408875,1.34860884,110570.0,110560.0,0.00014231]
[1756219409085,1.37295908,110570.0,110560.0,0.00014231]
[1756219409297,1.38031066,110570.0,110560.0,0.00014231]
[1756219410822,1.37395908,110570.0,110560.0,0.00014231]
[1756219411052,1.37395908,110570.0,110560.0,0.00114231]
[1756219411053,1.28251379,110570.0,110560.0,0.00114231]
[1756219411485,1.28886587,110570.0,110560.0,0.00114231]
[1756219412121,1.2970338,110570.0,110560.0,0.00114231]
[1756219413413,6.45811598,110570.0,110560.0,0.00114231]
[1756219413633,6.47398113,110570.0,110560.0,0.00114231]
[1756219413844,6.56542642,110570.0,110560.0,0.00114231]
[1756219414047,6.16158724,110570.0,110560.0,0.00114231]
[1756219414922,6.07015729,110570.0,110560.0,0.00114231]
[1756219415146,1.29299956,110570.0,110560.0,0.00114231]
[1756219415579,1.31739604,110570.0,110560.0,0.00114231]
[1756219415804,1.31945604,110570.0,110560.0,0.00114231]
[1756219416003,1.31945621,110570.0,110560.0,0.00114231]
[1756219416344,1.32005949,110570.0,110560.0,0.00114231]
[1756219416598,1.15471949,110570.0,110560.0,0.00114231]
[1756219416819,1.1241909,110570.0,110560.0,0.00328231]
[1756219417036,1.2864309,110570.0,110560.0,0.00114231]
[1756219417256,1.2893909,110570.0,110560.0,0.00114231]
[1756219417473,1.41336478,110570.0,110560.0,0.00114231]
[1756219417899,1.41336515,110570.0,110560.0,0.00114231]
[1756219419201,1.41336699,110570.0,110560.0,0.00114231]
[1756219420264,1.41040699,110570.0,110560.0,0.00114231]
[1756219420686,1.3778784,110570.0,110560.0,0.00114231]
[1756219420948,1.24816699,110570.0,110560.0,0.00114231]
[1756219421180,0.23863023,110570.0,110560.0,0.18712956]
[1756219421399,0.63399681,110570.0,110560.0,0.00623231]
[1756219421613,0.97399681,110570.0,110560.0,0.00623231]
[1756219422082,0.56815763,110570.0,110560.0,0.18712956]
[1756219422298,0.38967347,110570.0,110560.0,0.18712956]
[1756219422548,0.35415388,110570.0,110560.0,0.18712956]
[1756219423003,0.53503476,110570.0,110560.0,0.18712956]
[1756219423573,0.52088088,110570.0,110560.0,0.00623231]
[1756219423789,0.92472006,110570.0,110560.0,0.00723231]
[1756219424225,0.52088088,110570.0,110560.0,0.00723231]
[1756219424442,0.92472006,110570.0,110560.0,0.00723231]
[1756219424666,0.92684006,110570.0,110560.0,0.00428231]
[1756219424887,1.0387111,110570.0,110560.0,0.00214231]
[1756219425111,1.22042377,110570.0,110560.0,0.00214231]
[1756219425327,1.21746377,110570.0,110560.0,0.00214231]
[1756219425770,0.96380175,110570.0,110560.0,0.00528231]
[1756219426023,1.12600175,110570.0,110560.0,0.00428231]
[1756219426250,1.21744704,110570.0,110560.0,0.00428231]
[1756219426463,0.96168175,110570.0,110560.0,0.00328231]
[1756219426676,1.12896175,110570.0,110560.0,0.00114231]
[1756219426886,0.96676175,110570.0,110560.0,0.00114231]
[1756219427097,1.12896175,110570.0,110560.0,0.00114231]
[1756219427320,1.2617628,110570.0,110560.0,0.00114231]
[1756219428151,1.27023463,110570.0,110560.0,0.00114231]
[1756219428616,1.2749618,110570.0,110560.0,0.00114231]
[1756219428839,1.26648847,110570.0,110560.0,0.00114231]
[1756219429054,1.27496189,110570.0,110560.0,0.00114231]
[1756219429447,1.29936038,110570.0,110560.0,0.00114231]
[1756219429651,1.39717915,110570.0,110560.0,0.00114231]
[1756219431359,1.30277386,110570.0,110560.0,0.00328231]
[1756219431705,1.13209711,110570.0,110560.0,0.00623231]
[1756219431909,1.10769862,110570.0,110560.0,0.00623231]
[1756219432341,0.5949484,110570.0,110560.0,0.18712956]
[1756219432588,0.99878758,110570.0,110560.0,0.18712956]
[1756219433240,0.99878758,110570.0,110560.0,0.00623231]
[1756219433592,0.99031416,110570.0,110560.0,0.00623231]
[1756219433797,1.06287902,110570.0,110560.0,0.00623231]
[1756219434014,1.04336635,110570.0,110560.0,0.00723231]
[1756219434221,1.04548635,110570.0,110560.0,0.00214231]
[1756219434430,1.21060635,110570.0,110560.0,0.00214231]
[1756219434689,1.2301409,110570.0,110560.0,0.00214231]
[1756219435277,1.22805537,110570.0,110560.0,0.00214231]
[1756219436223,1.31951739,110570.0,110560.0,0.00214231]
[1756219436433,1.34753187,110570.0,110560.0,0.00214231]
[1756219436578,1.19173195,110570.0,110560.0,0.00314231]
[1756219436805,1.35385195,110570.0,110560.0,0.00314231]
[1756219437190,1.35385195,110570.0,110560.0,0.00214231]
[1756219437397,1.35385195,110570.0,110560.0,0.00114231]
[1756219437606,1.35485195,110570.0,110560.0,0.00114231]
[1756219438859,0.85660748,110570.0,110560.0,0.00328231]
[1756219439063,1.25408658,110570.0,110560.0,0.00114231]
[1756219439268,1.09196658,110570.0,110560.0,0.00328231]
[1756219439466,0.97037008,110570.0,110560.0,0.00623231]
[1756219439889,1.22389537,110570.0,110560.0,0.00623231]
[1756219440092,1.06181537,110570.0,110560.0,0.00623231]
[1756219440293,1.06181537,110570.0,110560.0,0.18712956]
[1756219440294,0.61292106,110570.0,110560.0,0.18712956]
[1756219440799,0.61392106,110570.0,110560.0,0.18712956]
[1756219441313,0.95192106,110570.0,110560.0,0.18712956]
[1756219441551,0.95192106,110570.0,110560.0,0.00623231]
[1756219441763,0.95192106,110570.0,110560.0,0.00723231]
[1756219441976,0.95192106,110570.0,110560.0,0.18812956]
[1756219442197,0.95192106,110570.0,110560.0,0.18912956]
[1756219442630,0.95192106,110570.0,110560.0,0.00823231]
[1756219443497,0.95192106,110570.0,110560.0,0.18912956]
[1756219444070,0.77104018,110570.0,110560.0,0.18912956]
[1756219444289,0.18090394,110580.0,110570.0,0.18088088]
[1756219444513,0.20910004,110580.0,110570.0,0.18597088]
[1756219444726,0.54809994,110580.0,110570.0,0.18597088]
[1756219445157,0.95193912,110580.0,110570.0,0.00509]
[1756219445653,0.95405912,110580.0,110570.0,0.00214]
[1756219445903,0.18088088,110570.0,110560.0,0.23278231]
[1756219446129,0.58784016,110570.0,110560.0,0.23492231]
[1756219446348,0.58684006,110570.0,110560.0,0.07288231]
[1756219446792,1.0144156,110570.0,110560.0,0.00328231]
[1756219446906,1.0144156,110570.0,110560.0,0.00114231]
[1756219446907,0.92989006,110570.0,110560.0,0.00114231]
[1756219447368,1.2008411,110570.0,110560.0,0.00114231]
[1756219447577,1.2280431,110570.0,110560.0,0.00114231]
[1756219447820,1.31948839,110570.0,110560.0,0.00114231]
[1756219448906,1.31948839,110570.0,110560.0,0.00214231]
[1756219449316,1.35386059,110570.0,110560.0,0.00214231]
[1756219450087,1.35858626,110570.0,110560.0,0.00214231]
[1756219450539,1.35858626,110570.0,110560.0,0.00114231]
[1756219451386,0.95474708,110570.0,110560.0,0.00114231]
[1756219451583,1.35386059,110570.0,110560.0,0.00114231]
[1756219451794,6.53934126,110570.0,110560.0,0.00114231]
[1756219452005,6.61094126,110570.0,110560.0,0.00114231]
[1756219452660,0.52094634,110530.0,110520.0,0.06956]
[1756219452869,0.92478552,110530.0,110520.0,0.11132]
[1756219453114,0.92478552,110530.0,110520.0,0.11652]
[1756219453329,0.92690552,110530.0,110520.0,0.11652]
[1756219453979,0.95424333,110530.0,110520.0,0.11334]
[1756219454203,1.02738606,110530.0,110520.0,0.11952]
[1756219454415,1.02738606,110530.0,110520.0,0.12052]
[1756219455072,1.02738606,110530.0,110520.0,0.004]
[1756219455308,1.20679508,110530.0,110520.0,0.004]
[1756219455518,1.20984508,110530.0,110520.0,0.004]
[1756219455729,1.04788508,110530.0,110520.0,0.004]
[1756219455953,1.05722767,110530.0,110520.0,0.004]
[1756219456205,1.05417767,110530.0,110520.0,0.00602]
[1756219456442,0.96146592,110530.0,110520.0,0.0092]
[1756219456931,0.54828415,110530.0,110520.0,0.19016272]
[1756219457143,0.36733781,110530.0,110520.0,0.35212272]
[1756219458055,0.02733781,110530.0,110520.0,0.35212272]
[1756219458284,0.00012881,110530.0,110520.0,0.44358474]
[1756219458944,0.00012881,110530.0,110520.0,0.84742392]
[1756219459951,0.00012881,110530.0,110520.0,0.44358474]
[1756219460187,0.00012881,110530.0,110520.0,0.84742392]
[1756219460891,0.00012881,110530.0,110520.0,1.19962208]
[1756219461542,0.00012881,110530.0,110520.0,1.19862208]
[1756219461761,0.00012881,110530.0,110520.0,1.03666208]
[1756219461977,0.00012881,110530.0,110520.0,0.6328229]
[1756219462190,0.00012881,110530.0,110520.0,0.4547429]
[1756219462409,0.00012881,110530.0,110520.0,0.4567429]
[1756219462844,0.00012881,110530.0,110520.0,0.28962474]
[1756219463067,0.00012881,110530.0,110520.0,0.45154474]
[1756219463293,0.00012881,110530.0,110520.0,0.28962474]
[1756219463506,0.58703433,110530.0,110520.0,0.44236474]
[1756219463724,0.58703433,110530.0,110520.0,0.35090272]
[1756219464193,0.40608799,110530.0,110520.0,0.35090272]
[1756219464414,0.00012881,110530.0,110520.0,0.35408272]
[1756219464633,0.18107515,110530.0,110520.0,0.35408272]
[1756219464853,0.18107515,110530.0,110520.0,0.34808272]
[1756219465046,0.18107515,110530.0,110520.0,0.35208272]
[1756219465268,0.00012881,110530.0,110520.0,0.35208272]
[1756219465480,0.00012881,110530.0,110520.0,0.35108272]
[1756219465901,0.00012881,110530.0,110520.0,0.35308272]
[1756219466112,0.00012881,110530.0,110520.0,0.35008272]
[1756219466527,0.00012881,110530.0,110520.0,0.35208272]
[1756219466775,0.18107515,110530.0,110520.0,0.35208272]
[1756219466956,0.18107515,110530.0,110520.0,0.34890272]
[1756219467171,0.18107515,110530.0,110520.0,0.34490272]
[1756219467970,0.00012881,110530.0,110520.0,0.34490272]
[1756219468200,0.00012881,110530.0,110520.0,0.34808272]
[1756219468414,0.00012881,110530.0,110520.0,0.35008272]
[1756219468617,0.18107515,110530.0,110520.0,0.35008272]
[1756219469399,0.18107515,110530.0,110520.0,0.35108272]
[1756219469612,0.18319515,110530.0,110520.0,0.34790272]
[1756219470001,0.18107515,110530.0,110520.0,0.34790272]
[1756219470237,0.18107515,110530.0,110520.0,0.35108272]
[1756219470670,0.18107515,110530.0,110520.0,0.17012]
[1756219470888,1.00766889,110530.0,110520.0,0.003]
[1756219471109,1.00666879,110530.0,110520.0,0.16484]
[1756219471317,1.00361879,110530.0,110520.0,0.16686]
[1756219471728,1.00666879,110530.0,110520.0,0.003]
[1756219472017,1.01601735,110530.0,110520.0,0.16484]
[1756219473518,1.01601735,110530.0,110520.0,0.003]
[1756219473727,1.01601735,110530.0,110520.0,0.1648]
[1756219474391,1.01601735,110530.0,110520.0,0.003]
[1756219474823,1.03346637,110530.0,110520.0,0.003]
[1756219475037,1.12492839,110530.0,110520.0,0.003]
[1756219475243,1.14443696,110530.0,110520.0,0.003]
[1756219475455,1.1507882,110530.0,110520.0,0.003]
[1756219476124,1.1507882,110530.0,110520.0,0.002]
[1756219476338,0.53841174,110520.0,110510.0,1e-08]
[1756219476551,0.94225092,110520.0,110510.0,1e-08]
[1756219476763,0.94742092,110520.0,110510.0,1e-08]
[1756219477188,0.54053174,110520.0,110510.0,1e-08]
[1756219477403,1.03581621,110520.0,110510.0,1e-08]
[1756219477613,1.03879621,110520.0,110510.0,1e-08]
[1756219478034,0.9269219,110520.0,110510.0,0.00206001]
[1756219478248,0.70944689,110520.0,110510.0,0.00206001]
[1756219478461,0.89040961,110520.0,110510.0,1e-08]
[1756219478877,0.90457058,110520.0,110510.0,1e-08]
[1756219479341,0.90557058,110520.0,110510.0,0.00206001]
[1756219480029,0.90557058,110520.0,110510.0,0.00508001]
[1756219480245,0.90557058,110520.0,110510.0,0.00206001]
[1756219480887,0.99701587,110520.0,110510.0,0.00206001]
[1756219481106,0.90557058,110520.0,110510.0,0.00206001]
[1756219481329,0.90557058,110520.0,110510.0,1e-08]
[1756219481997,0.93278358,110520.0,110510.0,1e-08]
[1756219482561,0.4996114,110520.0,110510.0,0.1860591]
[1756219482768,0.90345058,110520.0,110510.0,0.1860591]
[1756219482963,0.90345058,110520.0,110510.0,0.00508001]
[1756219483244,0.002,110520.0,110510.0,0.1860591]
[1756219483443,0.002,110520.0,110510.0,0.34712112]
[1756219483665,0.00012881,110530.0,110520.0,0.18096272]
[1756219484018,0.00012881,110530.0,110520.0,0.43716474]
[1756219484236,0.00012881,110530.0,110520.0,0.84306392]
[1756219484458,0.00012881,110530.0,110520.0,0.91558352]
[1756219484680,0.00012881,110530.0,110520.0,1.25558352]
[1756219484891,0.00012881,110530.0,110520.0,1.50558352]
[1756219485108,0.00012881,110530.0,110520.0,1.94059254]
[1756219485328,0.00012881,110530.0,110520.0,1.77987254]
[1756219485531,0.00012881,110530.0,110520.0,1.94159254]
[1756219487078,0.00012881,110530.0,110520.0,2.34359254]
[1756219487503,0.00012881,110530.0,110520.0,2.35359254]
[1756219487856,0.00012881,110530.0,110520.0,2.35059254]
[1756219488284,0.00012881,110530.0,110520.0,2.10459254]
[1756219488496,0.00012881,110530.0,110520.0,2.03707294]
[1756219489037,0.00012881,110530.0,110520.0,1.87535294]
[1756219489245,0.00012881,110530.0,110520.0,2.03703294]
[1756219489724,1e-08,110530.0,110520.0,2.48703294]
[1756219490405,1e-08,110530.0,110520.0,2.48699294]
[1756219490623,0.52084817,110590.0,110580.0,0.18086453]
[1756219490869,0.00213263,110590.0,110580.0,0.34682533]
[1756219491086,0.00014263,110590.0,110580.0,0.43904655]
[1756219491320,0.00213263,110590.0,110580.0,0.43602655]
[1756219491920,0.00014263,110590.0,110580.0,0.43904655]
[1756219492141,0.00014263,110590.0,110580.0,0.27740655]
[1756219492326,0.00014263,110590.0,110580.0,0.44000655]
[1756219492971,0.00213263,110590.0,110580.0,0.43698655]
[1756219493177,0.00213263,110590.0,110580.0,0.27538655]
[1756219493415,0.00213263,110590.0,110580.0,0.43698655]
[1756219494049,0.00213263,110590.0,110580.0,0.31564087]
[1756219494263,0.00213263,110590.0,110580.0,0.48431881]
[1756219494264,0.00613263,110590.0,110580.0,0.48431881]
[1756219494476,0.00414263,110590.0,110580.0,0.48939881]
[1756219494712,0.00613263,110590.0,110580.0,0.48637881]
[1756219494920,0.00613263,110590.0,110580.0,0.47724087]
[1756219495770,0.00613263,110590.0,110580.0,0.31564087]
[1756219496208,0.00613263,110590.0,110580.0,0.47720087]
[1756219497236,0.00613263,110590.0,110580.0,0.47716087]
[1756219500370,0.00414263,110590.0,110580.0,0.48018087]
[1756219500589,0.0141493,110630.0,110620.0,0.18079913]
[1756219500809,0.0141493,110630.0,110620.0,0.41691913]
[1756219501026,0.01661446,110630.0,110620.0,0.50536115]
[1756219501269,0.18324794,110630.0,110620.0,0.50536115]
[1756219501712,0.00246516,110630.0,110620.0,0.50330115]
[1756219501977,0.18324794,110630.0,110620.0,0.16102202]
[1756219502200,0.18324794,110630.0,110620.0,0.23104]
[1756219502201,0.59306712,110630.0,110620.0,0.23104]
[1756219502436,0.59306712,110630.0,110620.0,0.41183913]
[1756219502437,0.19022794,110630.0,110620.0,0.41183913]
[1756219502651,0.59106712,110630.0,110620.0,0.41183913]
[1756219502882,0.18722794,110630.0,110620.0,0.41183913]
[1756219503093,0.59206712,110630.0,110620.0,0.231]
[1756219503793,0.59206712,110630.0,110620.0,0.232]
[1756219503991,0.18822794,110630.0,110620.0,0.232]
[1756219504513,0.59206712,110630.0,110620.0,0.232]
[1756219504767,0.18722794,110630.0,110620.0,0.232]
[1756219505033,0.18722794,110630.0,110620.0,0.001]
[1756219505034,0.9687767,110630.0,110620.0,0.001]
[1756219505234,0.56493752,110630.0,110620.0,0.16244]
[1756219505456,0.9687767,110630.0,110620.0,0.16244]
[1756219506418,0.9677767,110630.0,110620.0,0.001]
[1756219506634,0.98522572,110630.0,110620.0,0.001]
[1756219507088,0.99022572,110630.0,110620.0,0.001]
[1756219507315,1.24308774,110630.0,110620.0,0.001]
[1756219507533,1.27081983,110630.0,110620.0,0.001]
[1756219508189,1.26242801,110630.0,110620.0,0.001]
[1756219508416,6.06659467,110630.0,110620.0,0.001]
[1756219508853,5.86748509,110630.0,110620.0,0.001]
[1756219509080,6.02888509,110630.0,110620.0,0.001]
[1756219509330,5.86748509,110630.0,110620.0,0.001]
[1756219509538,1.11024209,110630.0,110620.0,0.001]
[1756219509761,1.08586277,110630.0,110620.0,0.001]
[1756219510015,0.59056157,110630.0,110620.0,0.001]
[1756219510233,0.97727216,110630.0,110620.0,0.001]
[1756219510445,0.97727216,110630.0,110620.0,0.34519913]
[1756219510446,0.61982314,110630.0,110620.0,0.34519913]
[1756219510670,0.60048287,110630.0,110620.0,0.34519913]
[1756219510886,0.19465369,110630.0,110620.0,0.34824913]
[1756219511107,0.94060287,110630.0,110620.0,0.34519913]
[1756219511324,0.93860287,110630.0,110620.0,0.16236]
[1756219511553,0.93760287,110630.0,110620.0,0.16236]
[1756219511780,1.05137917,110630.0,110620.0,0.16236]